bitfinex/quotes_BTCUSD_20251116
["timestamp","ask_amount","ask_price","bid_price","bid_amount"]
[1763308846866,0.07612,94640.0,94630.0,0.00085108]
[1763308846867,0.21134299,94636.0,94630.0,0.00085108]
[1763308847083,0.07612,94640.0,94630.0,0.00085108]
[1763308847291,0.21127857,94662.0,94630.0,0.10947855]
[1763308847519,0.07612,94645.0,94631.0,0.01094786]
[1763308847730,0.07612,94645.0,94637.0,0.21133197]
[1763308847942,0.07612,94645.0,94638.0,0.09806]
[1763308848359,0.07612,94645.0,94639.0,0.21132936]
[1763308848571,0.2113182,94644.0,94638.0,0.09806]
[1763308848787,0.07612,94645.0,94630.0,0.00085108]
[1763308849003,0.07612,94645.0,94631.0,0.21134723]
[1763308849223,0.07612,94645.0,94632.0,0.02113449]
[1763308849642,0.21132645,94641.0,94632.0,0.02113449]
[1763308849853,0.2113182,94644.0,94632.0,0.02113449]
[1763308850083,0.07612,94645.0,94639.0,0.21132812]
[1763308850296,0.90779744,94660.0,94644.0,0.02367]
[1763308850297,0.01056412,94660.0,94644.0,0.02367]
[1763308850539,0.21131126,94648.0,94644.0,0.02367]
[1763308850770,0.21131188,94647.0,94644.0,0.02367]
[1763308850996,0.2113432,94633.0,94630.0,0.00085108]
[1763308851220,0.07616,94647.0,94630.0,0.00085108]
[1763308851486,0.21134231,94634.0,94630.0,0.00085108]
[1763308851689,0.2113337,94638.0,94630.0,0.00085108]
[1763308851904,0.2113182,94644.0,94630.0,0.00085108]
[1763308852028,0.21134479,94633.0,94630.0,0.00085108]
[1763308852230,0.07616,94647.0,94630.0,0.00085108]
[1763308852531,0.2113452,94632.0,94630.0,0.00085108]
[1763308853788,0.323,94631.0,94630.0,0.00085108]
[1763308854791,0.36641874,94631.0,94630.0,0.00085108]
[1763308855000,0.46577086,94631.0,94630.0,0.00085108]
[1763308855851,0.46577086,94631.0,94586.0,0.02114477]
[1763308855852,0.49851212,94631.0,94585.0,0.0223]
[1763308856077,0.49851212,94631.0,94580.0,0.0004]
[1763308856078,0.53439637,94609.0,94608.0,0.00019514]
[1763308856292,0.21139278,94611.0,94608.0,0.00019514]
[1763308856507,0.21139374,94611.0,94608.0,0.00019514]
[1763308856811,0.323,94629.0,94617.0,0.04111]
[1763308856812,0.323,94626.0,94617.0,0.04111]
[1763308856978,0.01056747,94630.0,94617.0,0.25248652]
[1763308857188,0.01056747,94630.0,94618.0,0.02524865]
[1763308857389,0.21135659,94627.0,94618.0,0.09806]
[1763308857762,0.07616,94631.0,94619.0,0.23230699]
[1763308857994,0.01056635,94640.0,94618.0,0.09806]
[1763308858167,0.07616,94636.0,94626.0,0.2113584]
[1763308858365,0.21130678,94650.0,94620.0,0.01056859]
[1763308858567,0.21131271,94647.0,94632.0,0.21134426]
[1763308858768,0.2113249,94643.0,94621.0,0.09806]
[1763308859009,0.07616,94649.0,94629.0,0.2113501]
[1763308859206,0.08672524,94650.0,94639.0,0.21132769]
[1763308859471,0.07616,94650.0,94630.0,0.21134946]
[1763308859616,0.07616,94650.0,94643.0,0.21131904]
[1763308859812,0.07616,94650.0,94642.0,0.21132101]
[1763308860012,0.07616,94650.0,94629.0,0.21134499]
[1763308860013,0.21130927,94648.0,94629.0,0.21134499]
[1763308860237,0.07616,94650.0,94646.0,0.21131204]
[1763308860438,0.07616,94650.0,94630.0,0.78400906]
[1763308860636,0.07616,94650.0,94642.0,0.21132095]
[1763308860869,0.07616,94650.0,94642.0,0.09806]
[1763308861078,0.07616,94650.0,94647.0,0.21130932]
[1763308861270,0.07616,94650.0,94629.0,0.00013514]
[1763308861271,0.21134581,94632.0,94629.0,0.00013514]
[1763308861426,0.21134581,94632.0,94584.0,0.03788806]
[1763308861427,0.21145896,94581.0,94580.0,0.0004]
[1763308861627,0.21152158,94553.0,94552.0,0.00300691]
[1763308861862,0.21152158,94553.0,94552.0,0.0031421]
[1763308862080,0.07616,94561.0,94552.0,0.0031421]
[1763308862253,0.2115178,94555.0,94552.0,0.0031421]
[1763308862455,0.74337211,94580.0,94552.0,0.0031421]
[1763308862812,0.74337211,94580.0,94559.0,0.21150614]
[1763308862813,0.07616,94568.0,94559.0,0.21150614]
[1763308863021,0.07616,94568.0,94560.0,0.21150592]
[1763308863138,0.07616,94568.0,94552.0,0.0933721]
[1763308863139,0.21151638,94556.0,94552.0,0.0031421]
[1763308863338,0.21150634,94560.0,94552.0,0.0031421]
[1763308863593,0.07616,94568.0,94552.0,0.0031421]
[1763308863796,0.21151768,94555.0,94552.0,0.0031421]
[1763308864313,0.07616,94568.0,94552.0,0.0031421]
[1763308864516,0.21151771,94555.0,94552.0,0.0031421]
[1763308866016,0.21151766,94558.0,94552.0,0.0031421]
[1763308866219,0.21151756,94555.0,94552.0,0.0031421]
[1763308866466,0.39916,94568.0,94552.0,0.0031421]
[1763308866668,0.21152158,94553.0,94552.0,0.0031421]
[1763308867084,0.53452158,94553.0,94552.0,0.0031421]
[1763308867289,0.57794032,94553.0,94552.0,0.0031421]
[1763308867704,0.57794032,94553.0,94520.0,0.0004]
[1763308867705,0.21159319,94521.0,94520.0,0.0004]
[1763308867903,0.21159319,94521.0,94520.0,0.00085089]
[1763308868517,0.0762,94536.0,94520.0,0.00085089]
[1763308868900,0.0762,94536.0,94522.0,0.21158876]
[1763308869097,0.21156185,94535.0,94522.0,0.21158876]
[1763308869273,0.0762,94536.0,94520.0,0.00085089]
[1763308869274,0.21157653,94529.0,94520.0,0.00085089]
[1763308869479,0.0762,94536.0,94520.0,0.00085089]
[1763308869886,0.21157559,94529.0,94520.0,0.21244461]
[1763308870285,0.21157378,94530.0,94520.0,0.00085089]
[1763308870493,0.09598,94566.0,94521.0,0.11147571]
[1763308870718,0.07624,94562.0,94530.0,0.01057865]
[1763308870915,0.21152353,94553.0,94537.0,0.21155556]
[1763308871124,0.21151545,94556.0,94530.0,0.01057865]
[1763308871330,0.22201201,94590.0,94540.0,0.01057753]
[1763308871557,0.2114902,94568.0,94555.0,0.21151544]
[1763308871761,0.07624,94577.0,94551.0,0.09023]
[1763308871968,0.21152244,94553.0,94538.0,0.09023]
[1763308872179,0.49470485,94570.0,94536.0,0.21155961]
[1763308872387,0.21154226,94544.0,94535.0,0.2115612]
[1763308872587,0.21153842,94546.0,94535.0,0.2115612]
[1763308872760,0.21153842,94546.0,94535.0,0.21201209]
[1763308872998,0.21153437,94548.0,94538.0,0.21155478]
[1763308873220,0.21150815,94559.0,94535.0,0.00045089]
[1763308873422,0.09935212,94555.0,94535.0,0.00045089]
[1763308873645,0.323,94556.0,94535.0,0.00045089]
[1763308873853,0.21151628,94556.0,94536.0,0.09023]
[1763308874108,0.21151628,94556.0,94546.0,0.21153543]
[1763308874317,0.21153359,94548.0,94536.0,0.09023]
[1763308874548,0.21155713,94538.0,94535.0,0.00045089]
[1763308874967,0.53455961,94536.0,94535.0,0.00045089]
[1763308875185,0.57797835,94536.0,94535.0,0.00045089]
[1763308875406,0.31090925,94538.0,94520.0,0.0004]
[1763308875407,0.57801193,94521.0,94520.0,0.0004]
[1763308875610,0.53504288,94521.0,94520.0,0.0004]
[1763308876672,0.00044969,94521.0,94520.0,0.0004]
[1763308877395,0.21204288,94521.0,94520.0,0.0004]
[1763308877601,0.00044969,94521.0,94520.0,0.0004]
[1763308878280,0.21204288,94521.0,94520.0,0.0004]
[1763308878488,0.00044969,94521.0,94520.0,0.0004]
[1763308878907,0.00044969,94521.0,94520.0,0.00129042]
[1763308879118,0.00044969,94521.0,94520.0,0.02244996]
[1763308879322,0.07624,94565.0,94551.0,0.02643]
[1763308879523,0.07624,94565.0,94560.0,0.21150393]
[1763308879731,0.01057305,94580.0,94560.0,0.21150444]
[1763308879732,0.22203648,94580.0,94560.0,0.21150444]
[1763308879934,0.07624,94588.0,94561.0,0.09588]
[1763308880127,0.21147378,94575.0,94564.0,0.2114949]
[1763308880464,0.21142745,94596.0,94587.0,0.02329]
[1763308880666,0.09935212,94606.0,94588.0,0.21144331]
[1763308880813,0.07624,94607.0,94597.0,0.21142102]
[1763308881067,0.07624,94607.0,94587.0,0.02329]
[1763308881068,0.07624,94607.0,94588.0,0.09588]
[1763308881272,0.07624,94607.0,94596.0,0.21142543]
[1763308881624,0.07624,94607.0,94597.0,0.30730319]
[1763308881843,0.28764308,94607.0,94597.0,0.09588]
[1763308882023,0.07624,94607.0,94598.0,0.09588]
[1763308882227,0.21141938,94599.0,94596.0,0.00013527]
[1763308882478,0.07624,94607.0,94597.0,0.09588]
[1763308883032,0.07624,94607.0,94597.0,0.12662428]
[1763308883239,0.07624,94607.0,94605.0,0.21140528]
[1763308883814,0.07624,94607.0,94606.0,0.09588]
[1763308884839,0.2113147,94646.0,94632.0,0.21134453]
[1763308885054,0.07624,94651.0,94637.0,0.21133365]
[1763308885257,0.010563,94670.0,94638.0,0.02113337]
[1763308885501,0.07624,94668.0,94640.0,0.01056635]
[1763308885927,0.21125709,94672.0,94643.0,0.21131946]
[1763308886122,0.00045053,94668.0,94641.0,0.09588]
[1763308886334,0.00045053,94668.0,94654.0,0.09935212]
[1763308886552,0.00045053,94668.0,94666.0,0.2112687]
[1763308886763,0.00045053,94668.0,94666.0,0.09588]
[1763308886958,0.00045053,94668.0,94667.0,0.09588]
[1763308887097,9.67950797,94650.0,94649.0,0.53430703]
[1763308887323,8.25909634,94650.0,94649.0,0.59053573]
[1763308888640,8.2347545,94650.0,94649.0,0.63395447]
[1763308888810,7.59359897,94650.0,94649.0,0.57772577]
[1763308889169,7.32941807,94650.0,94649.0,0.57772577]
[1763308889411,6.81402917,94650.0,94649.0,0.57772577]
[1763308889769,6.7822931,94650.0,94649.0,0.57772577]
[1763308889981,5.6154056,94650.0,94649.0,0.57772577]
[1763308890194,4.662683,94650.0,94649.0,0.57772577]
[1763308890399,4.63094693,94650.0,94649.0,0.57772577]
[1763308890643,4.59921086,94650.0,94649.0,0.57772577]
[1763308890855,4.56747479,94650.0,94649.0,0.57772577]
[1763308891065,4.56747479,94650.0,94649.0,0.53430703]
[1763308891476,4.56747479,94650.0,94649.0,0.21130703]
[1763308891877,4.56747479,94650.0,94649.0,0.21136703]
[1763308892323,4.56747479,94650.0,94649.0,0.19068765]
[1763308892541,4.56747479,94650.0,94649.0,6e-05]
[1763308892542,5.10177959,94650.0,94649.0,6e-05]
[1763308892750,5.10177959,94650.0,94649.0,0.00012]
[1763308892948,5.10177959,94650.0,94649.0,0.00018]
[1763308893167,5.19402095,94650.0,94649.0,0.00018]
[1763308893341,5.10177959,94650.0,94649.0,0.00024]
[1763308893563,5.10177959,94650.0,94598.0,0.01872]
[1763308893564,0.01056859,94620.0,94590.0,0.01057194]
[1763308893767,0.53430703,94649.0,94590.0,0.01057194]
[1763308893768,0.01056635,94640.0,94591.0,0.04010366]
[1763308893979,0.21136766,94622.0,94592.0,0.01896]
[1763308894180,0.04879415,94615.0,94599.0,0.21141763]
[1763308894387,0.21135169,94629.0,94592.0,0.01896]
[1763308894590,0.21136645,94623.0,94600.0,0.01896]
[1763308894797,0.21136733,94622.0,94606.0,0.21140181]
[1763308895007,0.00045025,94629.0,94623.0,0.21136428]
[1763308895224,0.00045025,94629.0,94625.0,0.21136063]
[1763308895427,0.00045025,94629.0,94626.0,0.02113584]
[1763308895840,0.00045025,94629.0,94627.0,0.21135616]
[1763308896050,0.00045025,94629.0,94627.0,0.23031616]
[1763308896255,0.00045025,94629.0,94628.0,0.01896]
[1763308896463,0.00045025,94629.0,94628.0,0.03679262]
[1763308896811,0.00045025,94629.0,94627.0,0.21135616]
[1763308897259,0.00045025,94629.0,94627.0,0.21235616]
[1763308897470,0.00045025,94629.0,94628.0,0.01996]
[1763308897909,0.00145025,94629.0,94628.0,0.01896]
[1763308898617,4.56747479,94650.0,94649.0,0.21130703]
[1763308898819,4.54864978,94650.0,94649.0,0.21130703]
[1763308900052,4.54964978,94650.0,94647.0,0.21131104]
[1763308900436,4.54864978,94650.0,94647.0,0.21131104]
[1763308900887,4.54964978,94650.0,94647.0,0.21131104]
[1763308901193,4.54864978,94650.0,94647.0,0.21131104]
[1763308902105,4.54864978,94650.0,94649.0,0.21130703]
[1763308902458,4.01580556,94650.0,94649.0,0.57772577]
[1763308902663,3.81777118,94650.0,94649.0,0.57772577]
[1763308902863,3.56618991,94650.0,94649.0,0.57772577]
[1763308903065,3.56338005,94650.0,94649.0,0.53430703]
[1763308903287,3.56338005,94650.0,94649.0,0.25472577]
[1763308903723,3.56338005,94650.0,94649.0,0.21130703]
[1763308904129,3.56538005,94650.0,94649.0,0.21130703]
[1763308904436,3.56538005,94650.0,94647.0,0.21131104]
[1763308904801,3.56538005,94650.0,94600.0,0.01057082]
[1763308905003,3.56538005,94650.0,94621.0,0.31071945]
[1763308905243,3.56538005,94650.0,94621.0,0.09935212]
[1763308905460,0.2113137,94647.0,94633.0,0.21134131]
[1763308905671,0.09935212,94649.0,94627.0,0.21135449]
[1763308905865,0.21131827,94644.0,94620.0,0.01056859]
[1763308906080,0.21131523,94646.0,94620.0,0.01056859]
[1763308906269,0.21132437,94642.0,94621.0,0.001]
[1763308906477,0.21133497,94637.0,94622.0,0.21136733]
[1763308906632,0.21133233,94638.0,94633.0,0.001]
[1763308907060,0.09935212,94649.0,94633.0,0.001]
[1763308907218,0.21131697,94645.0,94630.0,0.21134779]
[1763308907420,3.56338005,94650.0,94620.0,0.01056859]
[1763308907642,3.56338005,94650.0,94621.0,0.001]
[1763308907842,3.56338005,94650.0,94634.0,0.21133922]
[1763308908066,3.56338005,94650.0,94647.0,0.21131035]
[1763308908294,3.56338005,94650.0,94649.0,0.21130703]
[1763308908976,3.56338005,94650.0,94625.0,0.31703767]
[1763308908977,3.56338005,94650.0,94647.0,0.21130968]
[1763308909180,3.56301005,94650.0,94647.0,0.21130968]
[1763308909722,3.56301005,94650.0,94649.0,0.001]
[1763308910152,3.56301005,94650.0,94649.0,0.04441874]
[1763308910293,2.66962156,94650.0,94649.0,0.04341874]
[1763308910498,2.04362539,94650.0,94649.0,0.47781874]
[1763308910845,2.04362539,94650.0,94649.0,0.36641874]
[1763308910846,1.93321677,94650.0,94649.0,0.36641874]
[1763308911265,1.93321677,94650.0,94649.0,0.323]
[1763308911464,1.93321677,94650.0,94647.0,0.21136968]
[1763308911802,1.93321677,94650.0,94649.0,0.002]
[1763308912064,1.93321677,94650.0,94647.0,0.21136968]
[1763308912265,1.93521677,94650.0,94647.0,0.21136968]
[1763308912441,1.93721677,94650.0,94647.0,0.21136968]
[1763308912661,1.93521677,94650.0,94647.0,0.21142968]
[1763308913039,1.93321677,94650.0,94649.0,0.002]
[1763308913340,1.93321677,94650.0,94647.0,0.21142968]
[1763308913341,1.93321677,94650.0,94647.0,0.21148968]
[1763308913539,1.93321677,94650.0,94649.0,0.002]
[1763308914124,1.41278847,94650.0,94649.0,0.002]
[1763308914333,1.38715223,94650.0,94649.0,0.002]
[1763308914532,0.7972056,94650.0,94649.0,0.002]
[1763308914732,0.7085421,94650.0,94649.0,0.002]
[1763308914953,0.70236212,94650.0,94649.0,0.25472577]
[1763308915167,0.0002,94710.0,94699.0,0.21119493]
[1763308915338,0.21117799,94707.0,94688.0,0.21121842]
[1763308915540,0.21150792,94710.0,94690.0,0.21121422]
[1763308915784,0.21150792,94710.0,94693.0,0.21120708]
[1763308915785,0.00033521,94710.0,94693.0,0.21120708]
[1763308915983,0.00033521,94710.0,94687.0,0.21122223]
[1763308916186,0.00033521,94710.0,94690.0,0.21121507]
[1763308916448,0.00033521,94710.0,94699.0,0.21119535]
[1763308916650,0.09935212,94709.0,94696.0,0.21120127]
[1763308916849,0.00033521,94710.0,94700.0,0.2111923]
[1763308917048,0.00033521,94710.0,94698.0,0.21119672]
[1763308917277,0.00033521,94710.0,94707.0,0.21117652]
[1763308918716,0.00033521,94710.0,94707.0,0.001]
[1763308919214,0.00033521,94710.0,94708.0,0.2111754]
[1763308919381,0.00033521,94710.0,94709.0,0.323]
[1763308919761,0.00033521,94710.0,94709.0,0.36641874]
[1763308919939,1e-08,94710.0,94709.0,0.36641874]
[1763308920138,1e-08,94720.0,94719.0,0.57756961]
[1763308921373,1e-08,94720.0,94710.0,0.24117091]
[1763308921374,1e-08,94720.0,94714.0,0.21115987]
[1763308921576,1e-08,94720.0,94714.0,0.00013521]
[1763308922423,0.09935212,94715.0,94714.0,0.00013521]
[1763308923518,0.09935212,94715.0,94714.0,0.00113521]
[1763308923691,1e-08,94720.0,94714.0,0.00113521]
[1763308923893,0.21115087,94719.0,94714.0,0.00113521]
[1763308924103,1e-08,94720.0,94714.0,0.00113521]
[1763308924299,1e-08,94720.0,94714.0,0.00213521]
[1763308924842,0.09935212,94715.0,94714.0,0.00113521]
[1763308925042,0.09935212,94715.0,94714.0,0.00013521]
[1763308925299,0.09935212,94715.0,94714.0,0.00113521]
[1763308925520,0.09935212,94715.0,94714.0,0.00213521]
[1763308925726,0.21115614,94720.0,94714.0,0.00213521]
[1763308925933,0.21115614,94720.0,94714.0,0.00113521]
[1763308925934,0.09935212,94719.0,94714.0,0.00113521]
[1763308926123,0.09935212,94719.0,94714.0,0.00013521]
[1763308926355,1e-08,94720.0,94714.0,0.00013521]
[1763308926742,1e-08,94720.0,94718.0,0.21115296]
[1763308926965,1e-08,94720.0,94719.0,0.36641874]
[1763308927186,1e-08,94720.0,94717.0,0.21115448]
[1763308928061,1e-08,94720.0,94719.0,0.25456961]
[1763308928289,0.00200001,94720.0,94719.0,0.25456961]
[1763308928499,1e-08,94720.0,94719.0,0.25456961]
[1763308928936,0.0002,94740.0,94739.0,0.57752504]
[1763308931014,0.0002,94740.0,94720.0,0.76847444]
[1763308931218,0.0002,94740.0,94726.0,0.21113516]
[1763308931440,0.0022,94740.0,94739.0,6e-05]
[1763308932057,0.0032,94740.0,94739.0,6e-05]
[1763308932266,0.0002,94740.0,94739.0,6e-05]
[1763308932684,0.0022,94740.0,94739.0,0.2111663]
[1763308933081,0.0012,94740.0,94739.0,0.2111663]
[1763308933699,0.0012,94740.0,94739.0,0.2131663]
[1763308933909,0.0012,94740.0,94739.0,0.00206]
[1763308934126,0.0002,94740.0,94739.0,0.00206]
[1763308934323,0.0002,94740.0,94739.0,0.00406]
[1763308934782,0.00075403,94740.0,94739.0,6e-05]
[1763308935164,0.00075403,94740.0,94739.0,0.00206]
[1763308935953,0.00075403,94740.0,94739.0,0.00406]
[1763308936156,0.00075403,94740.0,94739.0,0.00206]
[1763308936565,0.00075403,94740.0,94739.0,6e-05]
[1763308936791,0.00075403,94740.0,94739.0,0.00206]
[1763308937515,0.00075403,94740.0,94739.0,0.00406]
[1763308937742,0.00075403,94740.0,94739.0,0.00206]
[1763308937950,0.00075403,94740.0,94739.0,0.02317063]
[1763308938162,0.00075403,94740.0,94739.0,0.02517063]
[1763308938371,0.00075403,94740.0,94739.0,0.38758937]
[1763308938597,0.00075403,94740.0,94739.0,0.36847874]
[1763308938806,0.00075403,94740.0,94739.0,0.37047874]
[1763308939217,0.00075403,94740.0,94739.0,0.00206]
[1763308939389,0.00275403,94740.0,94739.0,0.32506]
[1763308939749,0.00275403,94740.0,94739.0,0.42441212]
[1763308939955,0.00075403,94740.0,94739.0,0.46783086]
[1763308940361,0.00275403,94740.0,94739.0,0.46583086]
[1763308940725,0.00475403,94740.0,94739.0,0.46583086]
[1763308940959,0.00275403,94740.0,94739.0,0.46583086]
[1763308941276,0.00475403,94740.0,94739.0,0.46583086]
[1763308941476,0.00275403,94740.0,94739.0,0.46583086]
[1763308941725,0.00475403,94740.0,94739.0,0.46583086]
[1763308942508,0.00475403,94740.0,94739.0,0.32306]
[1763308942883,0.01055186,94770.0,94740.0,0.02055519]
[1763308943052,0.59307657,94800.0,94760.0,0.21105895]
[1763308943252,0.0002,94780.0,94771.0,0.21103403]
[1763308943458,0.0002,94780.0,94750.0,0.54788213]
[1763308943692,0.0002,94780.0,94766.0,0.21104461]
[1763308943901,0.0002,94780.0,94768.0,0.2110411]
[1763308944297,0.00065064,94780.0,94771.0,0.002]
[1763308944626,0.00065064,94780.0,94768.0,0.2110411]
[1763308944831,0.21166621,94780.0,94764.0,0.21105005]
[1763308945038,0.00065064,94780.0,94768.0,0.002]
[1763308945183,0.00065064,94780.0,94766.0,0.2110456]
[1763308945613,0.00065064,94780.0,94771.0,0.002]
[1763308946025,0.00065064,94780.0,94775.0,0.21102016]
[1763308946224,0.00065064,94780.0,94777.0,0.21101998]
[1763308946804,0.00065064,94780.0,94765.0,0.21104648]
[1763308947009,0.00065064,94780.0,94759.0,0.21106041]
[1763308947211,0.00065064,94780.0,94775.0,0.002]
[1763308947411,0.00065064,94780.0,94772.0,0.21103279]
[1763308947613,0.00065064,94780.0,94776.0,0.21102014]
[1763308947814,0.00065064,94780.0,94777.0,0.002]
[1763308948020,0.00065064,94780.0,94775.0,0.001]
[1763308948422,0.00065064,94780.0,94775.0,0.002]
[1763308948622,0.00099727,94776.0,94775.0,0.002]
[1763308949039,0.00099727,94776.0,94775.0,0.01431218]
[1763308949228,0.00099727,94776.0,94775.0,0.02310261]
[1763308949682,0.00099727,94776.0,94775.0,0.02110261]
[1763308949907,0.00099727,94776.0,94773.0,0.21102934]
[1763308950052,0.00065064,94780.0,94779.0,0.2110172]
[1763308950825,0.00065064,94780.0,94777.0,0.2110201]
[1763308951333,0.00065064,94780.0,94779.0,0.002]
[1763308952439,0.00065064,94780.0,94779.0,0.004]
[1763308952897,0.00065064,94780.0,94779.0,0.002]
[1763308953047,0.00065064,94780.0,94777.0,0.2110203]
[1763308953246,0.00065064,94780.0,94779.0,0.002]
[1763308953860,0.00065064,94780.0,94779.0,0.004]
[1763308954022,0.00065064,94780.0,94779.0,0.002]
[1763308954681,0.00065064,94780.0,94774.0,0.21102805]
[1763308954883,0.00065064,94780.0,94767.0,0.21104186]
[1763308955233,0.00065064,94780.0,94779.0,0.002]
[1763308955697,0.00065064,94780.0,94779.0,0.02110172]
[1763308955829,0.00065064,94780.0,94778.0,0.21101842]
[1763308956045,0.00175868,94780.0,94779.0,0.01841394]
[1763308956674,0.00175868,94780.0,94779.0,0.002]
[1763308957185,0.00175868,94780.0,94778.0,0.21101842]
[1763308957424,0.00065064,94780.0,94779.0,0.002]
[1763308957828,0.00065064,94780.0,94750.0,0.02055407]
[1763308957829,0.00065064,94780.0,94750.0,0.69383296]
[1763308958028,0.21103856,94770.0,94740.0,0.70383407]
[1763308958229,0.09935212,94779.0,94749.0,0.21108186]
[1763308958490,0.09935212,94779.0,94751.0,0.21107929]
[1763308958702,0.09935212,94764.0,94740.0,0.0105552]
[1763308958900,0.21106563,94758.0,94739.0,6e-05]
[1763308959110,0.01055186,94770.0,94744.0,0.21109384]
[1763308959297,0.01120138,94780.0,94739.0,6e-05]
[1763308959298,0.00065064,94780.0,94762.0,0.21105344]
[1763308959518,0.00065064,94780.0,94740.0,0.0105552]
[1763308959519,0.09935212,94763.0,94747.0,0.21108721]
[1763308959644,0.09935212,94763.0,94741.0,0.21110184]
[1763308960004,0.09935212,94763.0,94739.0,0.21116568]
[1763308960235,0.09935212,94763.0,94739.0,6e-05]
[1763308960452,0.21103947,94769.0,94743.0,0.21109619]
[1763308960647,0.21107198,94755.0,94739.0,0.21116407]
[1763308960946,0.01055186,94770.0,94752.0,0.21107652]
[1763308961188,0.09935212,94762.0,94742.0,0.21109961]
[1763308961372,0.2110708,94755.0,94739.0,0.00106]
[1763308961582,0.01055186,94770.0,94744.0,0.001]
[1763308961787,0.09935212,94763.0,94748.0,0.21108435]
[1763308961991,0.09935212,94762.0,94739.0,6e-05]
[1763308962195,0.09935212,94762.0,94742.0,0.21109808]
[1763308962397,0.21104607,94767.0,94740.0,0.68327888]
[1763308962605,0.01120138,94780.0,94741.0,0.02111018]
[1763308962816,0.01120138,94780.0,94739.0,6e-05]
[1763308962817,0.001,94762.0,94739.0,6e-05]
[1763308963028,0.001,94762.0,94743.0,0.21109536]
[1763308963227,0.21105729,94761.0,94741.0,0.21110184]
[1763308963428,0.21106921,94756.0,94739.0,6e-05]
[1763308963633,0.21106287,94759.0,94740.0,0.001]
[1763308963796,0.21106287,94759.0,94743.0,0.2110958]
[1763308963995,0.001,94762.0,94741.0,0.21110184]
[1763308964177,0.21104544,94767.0,94739.0,6e-05]
[1763308964178,0.21105951,94760.0,94739.0,6e-05]
[1763308964382,0.21106313,94759.0,94740.0,0.68427888]
[1763308964621,0.21105951,94760.0,94743.0,0.21109738]
[1763308965143,0.21105951,94760.0,94745.0,0.21109194]
[1763308965275,0.001,94760.0,94740.0,0.68327888]
[1763308965484,0.21106945,94756.0,94740.0,0.68327888]
[1763308965684,0.21107536,94753.0,94740.0,6e-05]
[1763308965942,0.31041386,94759.0,94740.0,6e-05]
[1763308965943,0.21108538,94749.0,94740.0,6e-05]
[1763308966206,0.09935212,94742.0,94740.0,6e-05]
[1763308966405,0.23047272,94741.0,94740.0,6e-05]
[1763308966806,0.32982484,94741.0,94740.0,6e-05]
[1763308966959,0.23047272,94741.0,94740.0,6e-05]
[1763308967139,0.23092308,94741.0,94740.0,6e-05]
[1763308967340,0.01982124,94741.0,94740.0,6e-05]
[1763308967570,0.00045036,94741.0,94740.0,6e-05]
[1763308967770,0.00045036,94741.0,94740.0,0.0211704]
[1763308968352,0.00045036,94741.0,94740.0,0.3441704]
[1763308968555,0.00045036,94741.0,94740.0,0.32506]
[1763308968762,0.00045036,94741.0,94740.0,0.36847874]
[1763308968968,0.00045036,94741.0,94740.0,0.36647874]
[1763308969381,0.00045036,94741.0,94740.0,0.37047874]
[1763308969581,0.00045036,94741.0,94740.0,0.36847874]
[1763308970146,0.00045036,94741.0,94740.0,0.42533576]
[1763308970523,0.00045036,94741.0,94740.0,0.36847874]
[1763308970745,0.00045036,94741.0,94740.0,0.32506]
[1763308970948,0.00045036,94741.0,94740.0,6e-05]
[1763308971323,0.00145036,94741.0,94740.0,6e-05]
[1763308971879,0.00045036,94741.0,94740.0,6e-05]
[1763308972106,0.00045036,94741.0,94740.0,0.00106]
[1763308972589,0.00045036,94741.0,94740.0,6e-05]
[1763308973253,0.09980248,94741.0,94740.0,6e-05]
[1763308973871,0.09973161,94741.0,94740.0,6e-05]
[1763308974290,0.09948861,94741.0,94740.0,0.00206]
[1763308974506,0.00013649,94741.0,94740.0,0.00206]
[1763308974713,0.00024935,94749.0,94740.0,0.00206]
[1763308974714,0.21110002,94742.0,94740.0,0.00206]
[1763308974906,0.00013503,94742.0,94740.0,0.00206]
[1763308975033,0.21109753,94743.0,94740.0,0.00406]
[1763308975235,0.2110681,94757.0,94741.0,0.21110184]
[1763308975466,0.01055186,94770.0,94740.0,0.00406]
[1763308975467,0.09884587,94754.0,94742.0,0.02110996]
[1763308975654,0.01055186,94770.0,94743.0,0.21109657]
[1763308975655,0.09935212,94759.0,94743.0,0.21109657]
[1763308975853,0.09904837,94759.0,94745.0,0.2110919]
[1763308976047,0.21104643,94766.0,94750.0,0.21108174]
[1763308976258,0.09935212,94758.0,94751.0,0.02110795]
[1763308976468,0.21107494,94754.0,94741.0,0.002]
[1763308976718,0.31045173,94742.0,94740.0,6e-05]
[1763308977149,0.09935212,94741.0,94740.0,6e-05]
[1763308977359,0.09935212,94741.0,94740.0,0.00106]
[1763308977771,0.2110584,94761.0,94740.0,0.00106]
[1763308977991,0.09935212,94754.0,94740.0,6e-05]
[1763308978200,0.21108916,94747.0,94740.0,6e-05]
[1763308978438,0.0454,94741.0,94740.0,0.00206]
[1763308978905,0.0454,94741.0,94740.0,6e-05]
[1763308979135,0.0454,94741.0,94740.0,0.00306]
[1763308979359,0.0454,94741.0,94740.0,0.00106]
[1763308979591,0.0454,94741.0,94701.0,0.21118977]
[1763308979592,0.01055631,94730.0,94700.0,6e-05]
[1763308979802,0.01055631,94730.0,94700.0,0.00051036]
[1763308979803,0.323,94714.0,94700.0,0.00051036]
[1763308980022,0.01055631,94730.0,94700.0,0.90553991]
[1763308980275,0.09935212,94724.0,94701.0,0.0211191]
[1763308980480,0.09935212,94724.0,94702.0,0.21118878]
[1763308980693,0.21115586,94717.0,94700.0,0.00051036]
[1763308980933,0.21117763,94707.0,94700.0,0.00051036]
[1763308981130,0.09935212,94708.0,94700.0,0.00051036]
[1763308981131,0.21118723,94703.0,94700.0,0.00051036]
[1763308981582,0.09935212,94708.0,94700.0,0.00051036]
[1763308981583,0.21119101,94701.0,94700.0,0.00051036]
[1763308981842,0.04341874,94722.0,94700.0,0.00051036]
[1763308981843,0.323,94721.0,94700.0,0.00051036]
[1763308982047,0.21119101,94701.0,94700.0,0.00051036]
[1763308982498,0.003,94703.0,94700.0,0.00051036]
[1763308982725,0.003,94703.0,94701.0,0.21119101]
[1763308982931,0.002,94703.0,94702.0,0.02111887]
[1763308983163,0.002,94703.0,94702.0,0.38866761]
[1763308983374,0.002,94703.0,94702.0,0.36641874]
[1763308983570,0.07608,94774.0,94745.0,0.21109183]
[1763308983721,0.21104044,94769.0,94747.0,0.21108847]
[1763308983946,0.22159038,94770.0,94741.0,0.21110184]
[1763308984147,0.22159038,94770.0,94731.0,0.21225295]
[1763308984148,0.09935212,94757.0,94734.0,0.21111615]
[1763308984372,0.09935212,94757.0,94730.0,0.69383519]
[1763308984571,0.31041287,94760.0,94747.0,0.21108816]